fUST/lending_fUST_20240516
["ID","MTS","AMOUNT","RATE_DAILY","PERIOD"]
[327147007,1715851470466,500.0,0.00017,2]
[327147008,1715851470550,3370.83146638,0.00017,2]
[327147009,1715851471066,1338.50754464,9.999e-05,2]
[327147010,1715851474047,568.28,0.00017,2]
[327147011,1715851478284,223.68972802,0.00016901,2]
[327147012,1715851479747,264.30522809,0.00017,2]
[327147013,1715851481307,2089.04497665,0.00017,2]
[327147014,1715851485584,585.73,0.00017,2]
[327147015,1715851487883,781.63,0.00017,2]
[327147016,1715851488218,19225.27,0.00017,2]
[327147017,1715851489056,332.0410978,0.00017,2]
[327147018,1715851490553,3370.83146638,0.00017,2]
[327147019,1715851490639,528.82337842,9.999e-05,2]
[327147020,1715851495255,500.0,0.00017,2]
[327147021,1715851495547,500.0,0.00017,2]
[327147022,1715851497566,1256.85686195,0.00017,2]
[327147023,1715851498113,500.0,0.00017,2]
[327147024,1715851498973,154.86062544,0.00017,2]
[327147025,1715851500079,2885.15,0.00017,2]
[327147026,1715851501687,536.94594495,0.00017,2]
[327147027,1715851504571,529.86022221,0.00017,2]
[327147028,1715851505230,273.37336231,9.9e-05,2]
[327147029,1715851505504,553.47645688,0.00017,2]
[327147030,1715851505731,4420.20805586,0.00017,2]
[327147031,1715851505755,2665.87194414,0.00017,2]
[327147032,1715851506112,684.29354561,0.00017,2]
[327147033,1715851506246,500.0,0.00017,2]
[327147034,1715851507509,500.0,0.00017,2]
[327147035,1715851512221,500.0,0.00017,2]
[327147036,1715851513828,273.37336231,9.9e-05,2]
[327147037,1715851514573,3370.83146638,0.00017,2]
[327147038,1715851518080,500.0,0.00017,2]
[327147039,1715851518227,8900.89,0.00017,2]
[327147040,1715851518665,1404.29,0.00017,2]
[327147041,1715851523449,273.37336231,9.9e-05,2]
[327147042,1715851524704,712.44,0.00017,2]
[327147043,1715851526821,995.39,0.00017,2]
[327147044,1715851527173,503.39211114,0.00017,2]
[327147045,1715851528257,1209.99,0.00017,2]
[327147046,1715851530544,3370.83146638,0.00017,2]
[327147047,1715851532511,273.37336231,9.9e-05,2]
[327147048,1715851534582,528.76307526,0.00017,2]
[327147049,1715851534905,859.78,0.00017,2]
[327147050,1715851535630,14793.38,0.00017,2]
[327147051,1715851535661,657.53035656,0.00017,2]
[327147052,1715851540591,500.0,0.00017,2]
[327147053,1715851542190,395.19974572,9.999e-05,2]
[327147054,1715851543067,273.37336231,9.9e-05,2]
[327147055,1715851543362,500.0,0.00017,2]
[327147056,1715851544352,500.0,0.00017,2]
[327147057,1715851547046,2852.07,0.00017,2]
[327147058,1715851549358,690.00913944,9.999e-05,2]
[327147059,1715851552561,1415.71762489,0.00017,2]
[327147060,1715851553863,500.0,0.00017,2]
[327147061,1715851557473,228.92536055,0.00017,2]
[327147062,1715851557508,500.0,0.00017,2]
[327147063,1715851559831,755.88,0.00017,2]
[327147064,1715851560888,500.0,0.00017,2]
[327147065,1715851563287,690.00913944,0.00017,2]
[327147066,1715851566858,2239.31,0.00017,2]
[327147067,1715851569399,805.55540394,0.00017,2]
[327147068,1715851569440,789.72,0.00017,2]
[327147069,1715851569917,553.48164581,0.00017,2]
[327147070,1715851570061,662.99386915,0.00017,2]
[327147071,1715851571211,2746.35,0.00017,2]
[327147072,1715851571871,452.99157442,0.00017,2]
[327147073,1715851574357,500.0,0.00017,2]
[327147074,1715851577870,484.81578422,9.999e-05,2]
[327147075,1715851578335,1350.02169683,9.999e-05,2]
[327147076,1715851579053,1269.04,0.00017,2]
[327147077,1715851579523,696.92,0.00017,2]
[327147078,1715851580684,500.0,0.00017,2]
[327147079,1715851580904,517.18,0.00017,2]
[327147080,1715851583079,500.0,0.00017,2]
[327147081,1715851583624,1312.68,0.00017,2]
[327147082,1715851585290,393.48069232,0.00017,2]
[327147083,1715851586431,702.32898903,9.999e-05,2]
[327147084,1715851590018,500.0,0.00017,2]
[327147085,1715851591085,814.82,0.00017,2]
[327147086,1715851591147,8860.94,0.00017,2]
[327147087,1715851591438,8860.94,0.00017,2]
[327147088,1715851591718,8860.94,0.00017,2]
[327147089,1715851592007,8860.94,0.00017,2]
[327147090,1715851592293,8860.94,0.00017,2]
[327147091,1715851592591,8860.94,0.00017,2]
[327147092,1715851592895,8860.94,0.00017,2]
[327147093,1715851593039,1363.05,0.00017,2]
[327147094,1715851593587,8860.94,0.00017,2]
[327147095,1715851593870,6178.76191953,0.00017,2]
[327147096,1715851593896,2682.17808047,0.00017,2]
[327147097,1715851594132,6666.97231953,0.00017,2]
[327147099,1715851631149,-19455.0804757,0.0001699,2]
[327147100,1715851631168,-702.10260862,0.00016999,2]
[327147101,1715851631188,-1396.90548083,0.00017,2]
[327147102,1715851631207,-2193.96768047,0.00017,2]
[327147103,1715851631227,-8860.94,0.00017,2]
[327147104,1715851631246,-8860.94,0.00017,2]
[327147105,1715851631265,-1975.50978552,0.00017,2]
[327147107,1715851711369,341.40371,0.00016002,2]
[327147108,1715851737582,157.32518028,9.999e-05,2]
[327147109,1715851775462,465.95532778,9.999e-05,2]
[327147159,1715851833750,-465.54303172,0.00016998,2]
[327147160,1715851833762,-65.13808297,0.00016999,2]
[327147161,1715851833777,-92.46361062,0.00016999,2]
[327147162,1715851833790,-500.0,0.00016999,2]
[327147163,1715851833802,-1264.68,0.00016999,2]
[327147165,1715851833813,-1161.59,0.00016999,2]
[327147167,1715851833826,-36227.21120421,0.00017,3]
[327147176,1715851833897,-905.41848869,0.00017,3]
[327147179,1715851833917,-3627.52612423,0.00017,3]
[327147181,1715851833933,-634.27856525,0.00017,3]
[327147184,1715851833947,-1453.10091913,0.00017,3]
[327147834,1715851842727,-500.0,0.00016999,2]
[327147836,1715851842737,-1377.08072345,0.00017,3]
[327147838,1715851842750,-23818.88816654,0.00017,3]
[327147840,1715851842759,-1023.66,0.00017,2]
[327147842,1715851842768,-500.0,0.00017,2]
[327147844,1715851842777,-500.0,0.00017,2]
[327147846,1715851842786,-3869.47,0.00017,2]
[327147866,1715851842966,-500.0,0.00017,2]
[327147868,1715851842975,-3093.20753895,0.00017,2]
[327147877,1715851843051,-385.30646387,0.00017,2]
[327147946,1715851843436,-2801.37573379,0.00017,2]
[327147948,1715851843450,-1950.98026339,0.00017,2]
[327147950,1715851843459,-500.0,0.00017,2]
[327147952,1715851843468,-1045.61,0.00017,2]
[327147954,1715851843477,-500.0,0.00017,2]
[327147956,1715851843487,-3190.66275282,0.00017,2]
[327147959,1715851843501,-964.74724718,0.00017,2]
[327147961,1715851843510,-7175.23,0.00017,2]
[327147963,1715851843520,-500.0,0.00017,2]
[327147965,1715851843529,-4557.49,0.00017,2]
[327147967,1715851843539,-509.11158163,0.00017,2]
[327147969,1715851843548,-930.82,0.00017,2]
[327147971,1715851843557,-573.3,0.00017,2]
[327147973,1715851843567,-500.0,0.00017,2]
[327147975,1715851843576,-1234.16,0.00017,2]
[327147977,1715851843586,-500.0,0.00017,2]
[327147978,1715851843595,-500.0,0.00017,2]
[327147980,1715851843604,-500.0,0.00017,2]
[327147982,1715851843613,-1468.39,0.00017,2]
[327147984,1715851843623,-503.83951576,0.00017,2]
[327147986,1715851843632,-1138.46,0.00017,2]
[327147988,1715851843642,-2259.58987299,0.00017,2]
[327147991,1715851843658,-1613.11012701,0.00017,2]
[327147993,1715851843668,-447.44182356,0.00017,2]
[327147995,1715851843680,-83.55817644,0.00017,2]
[327147997,1715851843689,-556.12918764,0.00017,2]
[327148020,1715851843990,-137.30081236,0.00017,2]
[327148021,1715851844000,-648.88,0.00017,2]
[327148022,1715851844010,-1815.89,0.00017,2]
[327148023,1715851844020,-1512.75,0.00017,2]
[327148024,1715851844030,-633.46,0.00017,2]
[327148025,1715851844039,-631.95026605,0.00017,2]
[327148026,1715851844050,-5158.49973395,0.00017,2]
[327148027,1715851844060,-854.0138368,0.00017,2]
[327148229,1715851894845,24900.0,0.00016003,2]
[327148230,1715852019815,159.62680991,0.00026334,120]
[327148231,1715852019986,227.767,0.00025536,120]
[327148232,1715852020045,227.767,0.00025536,120]
[327148233,1715852020097,227.767,0.00025536,120]
[327148234,1715852020194,227.767,0.00025536,120]
[327148235,1715852020226,227.767,0.00025536,120]
[327148239,1715852251155,2206.3198023,0.00015974,2]
[327148240,1715852262034,170.701855,0.00015974,2]
[327148241,1715852360611,16758.29412464,0.00015987,2]
[327148242,1715852360636,8141.70587536,0.00015987,2]
[327148246,1715852765364,150.0,0.00025,60]
[327148247,1715852774778,170.701855,0.00015997,2]
[327148252,1715852852299,-585.43454065,0.0001684,2]
[327148253,1715852852319,-8747.82642077,0.0001684,2]
[327148254,1715852852340,-757.0603964,0.00016897,2]
[327148255,1715852852359,-416.87621729,0.00016939,2]
[327148256,1715852852380,-500.0,0.00016996,2]
[327148257,1715852852400,-500.0,0.00016996,2]
[327148258,1715852852419,-1113.19,0.00016996,2]
[327148259,1715852852440,-500.0,0.00016996,2]
[327148260,1715852852461,-500.0,0.00016996,2]
[327148261,1715852852482,-500.0,0.00016996,2]
[327148262,1715852852502,-500.0,0.00016996,2]
[327148263,1715852852523,-177.45,0.00016996,2]
[327148264,1715852852543,-500.0,0.00016996,2]
[327148265,1715852852563,-500.0,0.00016996,2]
[327148266,1715852852584,-2058.7,0.00016996,2]
[327148267,1715852852605,-948.16,0.00016996,2]
[327148268,1715852852626,-500.0,0.00016996,2]
[327148269,1715852852647,-500.0,0.00016996,2]
[327148270,1715852852668,-500.0,0.00016997,2]
[327148271,1715852852690,-1211.98,0.00016997,2]
[327148272,1715852852711,-1197.16,0.00016997,2]
[327148273,1715852852734,-778.82,0.00016997,2]
[327148274,1715852852754,-500.0,0.00016997,2]
[327148275,1715852852777,-500.0,0.00016997,2]
[327148276,1715852852801,-527.81,0.00016997,2]
[327148277,1715852852822,-1254.42,0.00016997,2]
[327148278,1715852852843,-500.0,0.00016997,2]
[327148279,1715852852865,-500.0,0.00016997,2]
[327148280,1715852853032,-1472.1,0.00016997,2]
[327148281,1715852853055,-500.0,0.00016997,2]
[327148282,1715852853077,-500.0,0.00016997,2]
[327148283,1715852853098,-500.0,0.00016997,2]
[327148284,1715852853119,-3023.25,0.00016997,2]
[327148285,1715852853139,-864.65,0.00016997,2]
[327148286,1715852853160,-5340.47,0.00016997,2]
[327148287,1715852853180,-500.0,0.00016997,2]
[327148288,1715852853203,-659.09,0.00016997,2]
[327148289,1715852853224,-1749.27,0.00016997,2]
[327148290,1715852853246,-500.0,0.00016997,2]
[327148291,1715852853267,-651.5,0.00016997,2]
[327148292,1715852853294,-544.6,0.00016997,2]
[327148293,1715852853315,-5549.18,0.00016997,2]
[327148294,1715852853338,-2764.93,0.00016997,2]
[327148295,1715852853359,-795.86,0.00016997,2]
[327148296,1715852853382,-749.06,0.00016997,2]
[327148297,1715852853403,-500.0,0.00016997,2]
[327148298,1715852853425,-500.0,0.00016997,2]
[327148299,1715852853448,-500.0,0.00016997,2]
[327148300,1715852853470,-682.75,0.00016997,2]
[327148301,1715852853492,-500.0,0.00016997,2]
[327148302,1715852853512,-953.91,0.00016997,2]
[327148303,1715852853534,-14176.99,0.00016997,2]
[327148304,1715852853555,-2261.16829988,0.00016997,2]
[327148305,1715852892260,1177.9966209,0.00015999,2]
[327148348,1715853033361,-1011.4,0.00016996,2]
[327148349,1715853033371,-538.24,0.00016996,2]
[327148350,1715853033381,-500.0,0.00016996,2]
[327148352,1715853033390,-500.0,0.00016996,2]
[327148353,1715853033399,-500.0,0.00016996,2]
[327148355,1715853033408,-500.0,0.00016996,2]
[327148357,1715853033417,-653.12,0.00016996,2]
[327148358,1715853033426,-500.0,0.00016996,2]
[327148360,1715853033435,-500.0,0.00016996,2]
[327148362,1715853033445,-593.29,0.00016996,2]
[327148364,1715853033454,-500.0,0.00016996,2]
[327148366,1715853033463,-629.68,0.00016996,2]
[327148368,1715853033472,-500.0,0.00016996,2]
[327148370,1715853033481,-661.96,0.00016996,2]
[327148372,1715853033491,-631.62,0.00016996,2]
[327148374,1715853033500,-500.0,0.00016996,2]
[327148376,1715853033510,-2649.73,0.00016996,2]
[327148378,1715853033519,-500.0,0.00016996,2]
[327148380,1715853033528,-990.58,0.00016996,2]
[327148382,1715853033537,-500.0,0.00016996,2]
[327148384,1715853033547,-500.0,0.00016996,2]
[327148386,1715853033556,-583.29295271,0.00016996,2]
[327148388,1715853033565,-500.0,0.00016996,2]
[327148390,1715853033575,-500.0,0.00016996,2]
[327148392,1715853033585,-852.76,0.00016996,2]
[327148394,1715853033595,-914.17,0.00016996,2]
[327148396,1715853033604,-500.0,0.00016996,2]
[327148398,1715853033613,-755.16,0.00016996,2]
[327148400,1715853033622,-13586.28,0.00016996,2]
[327148402,1715853033632,-654.3,0.00016996,2]
[327148404,1715853033641,-500.0,0.00016996,2]
[327148406,1715853033651,-2733.24,0.00016996,2]
[327148408,1715853033660,-395.26572016,0.00016996,2]
[327148410,1715853033670,-500.0,0.00016996,2]
[327148411,1715853033679,-569.86,0.00016996,2]
[327148413,1715853033688,-500.0,0.00016996,2]
[327148415,1715853033697,-500.0,0.00016996,2]
[327148417,1715853033706,-500.0,0.00016996,2]
[327148419,1715853033715,-2043.56286509,0.00016996,2]
[327148857,1715853038093,-102.44713491,0.00016996,2]
[327148860,1715853038108,-500.0,0.00016996,2]
[327148862,1715853038126,-2631.92,0.00016996,2]
[327148864,1715853038152,-500.0,0.00016996,2]
[327148867,1715853038171,-1216.17,0.00016996,2]
[327148870,1715853038191,-500.0,0.00016996,2]
[327148873,1715853038208,-527.0625088,0.00016996,2]
[327148875,1715853038223,-500.0,0.00016996,2]
[327148877,1715853038238,-500.0,0.00016996,2]
[327148880,1715853038259,-973.41,0.00016996,2]
[327148882,1715853038274,-500.0,0.00016996,2]
[327148884,1715853038287,-140.93171798,0.00016996,2]
[327148887,1715853038307,-4215.57072464,0.00016996,2]
[327148905,1715853038480,-503.89755738,0.00016996,2]
[327148907,1715853038493,-4860.4,0.00016996,2]
[327148909,1715853038506,-4860.4,0.00016996,2]
[327148910,1715853038519,-500.0,0.00016996,2]
[327148911,1715853038531,-500.0,0.00016996,2]
[327148912,1715853038544,-500.0,0.00016996,2]
[327148914,1715853038558,-1272.98,0.00016996,2]
[327148915,1715853038571,-1497.14,0.00016996,2]
[327148917,1715853038583,-1745.82528128,0.00016997,3]
[327148919,1715853038596,-325.31449427,0.00016997,2]
[327148921,1715853038609,-500.0,0.00016997,2]
[327148922,1715853038622,-667.88,0.00016997,2]
[327148925,1715853038638,-981.0,0.00016997,2]
[327148927,1715853038650,-4128.2,0.00016997,2]
[327148929,1715853038662,-500.0,0.00016997,2]
[327148931,1715853038674,-3982.26,0.00016997,2]
[327148932,1715853038687,-500.0,0.00016997,2]
[327148934,1715853038699,-500.0,0.00016997,2]
[327148936,1715853038711,-1002.04,0.00016997,2]
[327148938,1715853038723,-4367.59,0.00016997,2]
[327148939,1715853038735,-1239.09,0.00016997,2]
[327148940,1715853038748,-151.0,0.00016997,2]
[327148941,1715853038760,-1306.26,0.00016997,2]
[327148942,1715853038772,-151.0,0.00016997,2]
[327148943,1715853038785,-500.0,0.00016997,2]
[327148944,1715853038798,-3708.24,0.00016997,2]
[327148945,1715853038810,-151.0,0.00016997,2]
[327148946,1715853038823,-151.0,0.00016997,2]
[327148947,1715853038836,-500.0,0.00016997,2]
[327148948,1715853038848,-7887.92,0.00016997,2]
[327148949,1715853038861,-624.35,0.00016997,2]
[327148950,1715853038874,-308.184268,0.00016997,2]
[327148951,1715853038887,-308.184268,0.00016997,2]
[327148952,1715853038899,-500.0,0.00016997,2]
[327148953,1715853038911,-500.0,0.00016997,2]
[327148954,1715853038923,-308.184268,0.00016997,2]
[327148955,1715853038936,-308.184268,0.00016997,2]
[327148956,1715853038948,-5571.62,0.00016997,2]
[327148957,1715853038961,-151.0,0.00016997,2]
[327148958,1715853038973,-2097.75242647,0.00016997,2]
[327148990,1715853041116,-501.98208771,0.00016997,2]
[327149037,1715853043319,-713.2,0.00016996,2]
[327149038,1715853043328,-2042.20548582,0.00016997,2]
[327149039,1715853043337,-151.0,0.00016997,2]
[327149041,1715853043348,-508.87,0.00016997,2]
[327149043,1715853043358,-1964.46677652,0.00016997,2]
[327149045,1715853043369,-4911.79322348,0.00016997,2]
[327149047,1715853043379,-762.7,0.00016997,2]
[327149048,1715853043388,-500.0,0.00016997,2]
[327149050,1715853043397,-30.66598881,0.00016997,2]
[327149052,1715853043408,-1697.35186001,0.00016997,2]
[327149053,1715853043420,-12.21215118,0.00016997,2]
[327149054,1715853043429,-1792.11127182,0.00016997,2]
[327149055,1715853043442,-801.53682618,0.00016997,2]
[327149056,1715853043451,-2210.93450069,0.00016997,2]
[327149058,1715853043462,-382.71359731,0.00016997,2]
[327149060,1715853043472,-549.41,0.00016997,2]
[327149062,1715853043481,-2593.648098,0.00016997,2]
[327149063,1715853043491,-812.58,0.00016997,2]
[327149064,1715853043502,-2593.648098,0.00016997,2]
[327149065,1715853043511,-500.0,0.00016997,2]
[327149066,1715853043520,-513.51,0.00016997,2]
[327149067,1715853043529,-1407.21,0.00016997,2]
[327149068,1715853043539,-755.22,0.00016997,2]
[327149069,1715853043548,-3711.34,0.00016997,2]
[327149070,1715853043557,-500.0,0.00016997,2]
[327149071,1715853043566,-1449.72,0.00016997,2]
[327149072,1715853043576,-1233.4,0.00016997,2]
[327149073,1715853043585,-3518.33,0.00016997,2]
[327149074,1715853043594,-561.32,0.00016997,2]
[327149075,1715853043603,-500.0,0.00016997,2]
[327149076,1715853043612,-6790.83,0.00016997,2]
[327149077,1715853043621,-1600.19,0.00016997,2]
[327149078,1715853043632,-1966.35,0.00016997,2]
[327149079,1715853043643,-2372.52115018,0.00016997,2]
[327149090,1715853076590,11917.8584957,0.00015999,2]
[327149091,1715853079577,330.86077589,9.999e-05,2]
[327149093,1715853102556,897.18808223,0.00015,2]
[327149096,1715853282069,2633.51235248,9.999e-05,2]
[327149098,1715853575495,200.0,0.0001,2]
[327149100,1715853936028,502.36086348,9.999e-05,2]
[327149101,1715853990796,154.81422293,9.999e-05,2]
[327149102,1715854047369,1094.64720294,9.999e-05,2]
[327149496,1715854238533,-154.81422293,0.00016696,2]
[327149498,1715854238543,-2596.45823948,0.00016696,2]
[327149500,1715854238552,-2677.97514069,0.00016696,2]
[327149502,1715854238561,-1896.9888826,0.00016697,2]
[327149504,1715854238571,-416.87621729,0.00016723,2]
[327149506,1715854238580,-468.34763252,0.00016835,2]
[327149508,1715854238589,-175.05153099,0.00016894,2]
[327149510,1715854238598,-282.22276634,0.00016992,2]
[327149512,1715854238607,-670.50184522,0.00016992,2]
[327149514,1715854238622,-500.67116306,0.00016992,2]
[327149516,1715854238631,-500.0,0.00016992,2]
[327149518,1715854238640,-1161.49,0.00016992,2]
[327149520,1715854238651,-420.82889366,0.00016993,2]
[327149522,1715854238660,-1434.76,0.00016993,2]
[327149524,1715854238669,-3956.19,0.00016993,2]
[327149526,1715854238679,-1006.56,0.00016993,2]
[327149528,1715854238688,-3816.34,0.00016993,2]
[327149530,1715854238700,-1187.46,0.00016993,2]
[327149532,1715854238709,-500.0,0.00016993,2]
[327149534,1715854238718,-500.0,0.00016993,2]
[327149536,1715854238727,-598.34,0.00016993,2]
[327149537,1715854238736,-500.0,0.00016993,2]
[327149538,1715854238746,-5339.47,0.00016993,2]
[327149540,1715854238755,-500.0,0.00016993,2]
[327149542,1715854238764,-1667.72,0.00016993,2]
[327149544,1715854238774,-959.73,0.00016993,2]
[327149546,1715854238783,-605.31,0.00016993,2]
[327149548,1715854238791,-500.0,0.00016993,2]
[327149549,1715854238800,-723.75,0.00016993,2]
[327149551,1715854238810,-500.0,0.00016993,2]
[327149554,1715854238820,-2647.61,0.00016993,2]
[327149555,1715854238829,-500.0,0.00016993,2]
[327149557,1715854238838,-537.93,0.00016993,2]
[327149559,1715854238847,-18330.0,0.00016993,2]
[327149561,1715854238856,-500.0,0.00016993,2]
[327149563,1715854238865,-500.0,0.00016993,2]
[327149565,1715854238874,-876.08,0.00016993,2]
[327149567,1715854238883,-6507.88,0.00016993,2]
[327149569,1715854238892,-653.89,0.00016993,2]
[327149571,1715854238901,-13020.18,0.00016993,2]
[327149573,1715854238910,-500.0,0.00016993,2]
[327149575,1715854238920,-2619.35,0.00016993,2]
[327149577,1715854238929,-500.0,0.00016993,2]
[327149579,1715854238939,-8431.16,0.00016993,2]
[327149581,1715854238948,-1159.57,0.00016993,2]
[327149583,1715854238957,-2056.59,0.00016993,2]
[327149585,1715854238967,-2522.26,0.00016993,2]
[327149587,1715854238976,-1165.49,0.00016993,2]
[327149589,1715854238985,-500.0,0.00016993,2]
[327149591,1715854238996,-724.38,0.00016993,2]
[327149593,1715854239006,-4252.85,0.00016993,2]
[327149595,1715854239015,-4252.85,0.00016993,2]
[327149597,1715854239025,-4252.85,0.00016993,2]
[327149600,1715854239035,-4252.85,0.00016993,2]
[327149602,1715854239044,-4252.85,0.00016993,2]
[327149603,1715854239055,-4252.85,0.00016993,2]
[327149606,1715854239065,-4252.85,0.00016993,2]
[327149608,1715854239074,-4252.85,0.00016993,2]
[327149610,1715854239084,-500.0,0.00016993,2]
[327149612,1715854239093,-8616.67382871,0.00016994,3]
[327149751,1715854240546,-3865.363186,0.00016994,3]
[327149753,1715854240558,-6635.34953042,0.00016994,3]
[327149767,1715854240687,-14904.36555062,0.00016994,3]
[327149769,1715854240700,-872.91264064,0.00016994,3]
[327149772,1715854240710,-1516.20451626,0.00016994,2]
[327149773,1715854240720,-645.34094931,0.00016994,2]
[327149775,1715854240729,-500.0,0.00016994,2]
[327149777,1715854240738,-500.0,0.00016994,2]
[327149780,1715854240748,-2310.24,0.00016994,2]
[327149782,1715854240757,-751.74961339,0.00016994,2]
[327149980,1715854243455,-1896.9888826,0.00016695,2]
[327149981,1715854243465,-1374.98,0.00016993,2]
[327149982,1715854243475,-2827.46070712,0.00016993,2]
[327150030,1715854248448,-2213.98,0.00016992,2]
[327150031,1715854248457,-500.0,0.00016992,2]
[327150033,1715854248467,-963.88929288,0.00016993,2]
[327150035,1715854248476,-500.0,0.00016993,2]
[327150037,1715854248485,-315.05038661,0.00016994,2]
[327150039,1715854248495,-372.52263561,0.00016994,2]
[327150040,1715854248504,-500.0,0.00016994,2]
[327150041,1715854248646,-262.45545602,0.00016994,2]
[327150042,1715854248656,-500.0,0.00016994,2]
[327150043,1715854248666,-500.0,0.00016994,2]
[327150044,1715854248676,-500.0,0.00016994,2]
[327150045,1715854248685,-606.1,0.00016994,2]
[327150046,1715854248698,-399.87434932,0.00016994,2]
[327150047,1715854248708,-500.0,0.00016994,2]
[327150048,1715854248717,-505.82,0.00016994,2]
[327150049,1715854248726,-425.95119997,0.00016994,2]
[327150050,1715854248735,-500.0,0.00016994,2]
[327150051,1715854248744,-2132.23,0.00016994,2]
[327150052,1715854248753,-1202.15,0.00016994,2]
[327150053,1715854248762,-500.0,0.00016994,2]
[327150054,1715854248771,-403.69989017,0.00016994,2]
[327150057,1715854272107,363.0,0.00010959,2]
[327150058,1715854317693,818.02809469,9.999e-05,2]
[327150065,1715854759373,818.02809469,9.999e-05,2]
[327150070,1715855149143,-416.87621729,0.00016801,2]
[327150071,1715855149163,-374.67810601,0.0001683,2]
[327150072,1715855149186,-217.55042293,0.00016989,2]
[327150073,1715855149208,-500.0,0.00016989,2]
[327150074,1715855149228,-580.09,0.00016989,2]
[327150075,1715855149250,-500.0,0.00016989,2]
[327150076,1715855149271,-2008.68,0.00016989,2]
[327150077,1715855149293,-626.65,0.00016989,2]
[327150078,1715855149315,-883.92,0.00016989,2]
[327150079,1715855149336,-12477.67,0.00016989,2]
[327150080,1715855149358,-493.63116231,0.0001699,2]
[327150081,1715855149379,-500.0,0.0001699,2]
[327150082,1715855149400,-1113.09,0.0001699,2]
[327150083,1715855149421,-725.54,0.0001699,2]
[327150084,1715855149441,-500.0,0.0001699,2]
[327150085,1715855149460,-500.0,0.0001699,2]
[327150086,1715855149479,-500.0,0.0001699,2]
[327150087,1715855149500,-500.0,0.0001699,2]
[327150088,1715855149520,-500.0,0.0001699,2]
[327150089,1715855149539,-607.15,0.0001699,2]
[327150090,1715855149559,-2140.12,0.0001699,2]
[327150091,1715855149578,-2510.21,0.0001699,2]
[327150092,1715855149597,-1152.06,0.0001699,2]
[327150093,1715855149617,-1970.9,0.0001699,2]
[327150094,1715855149637,-2417.17,0.0001699,2]
[327150095,1715855149661,-1116.93,0.0001699,2]
[327150096,1715855149682,-739.62,0.0001699,2]
[327150097,1715855149704,-500.0,0.0001699,2]
[327150098,1715855149727,-2835.23,0.0001699,2]
[327150099,1715855149748,-500.0,0.0001699,2]
[327150100,1715855149915,-854.09,0.0001699,2]
[327150101,1715855149936,-1410.76,0.0001699,2]
[327150102,1715855149957,-1317.68,0.0001699,2]
[327150103,1715855149983,-3633.38,0.0001699,2]
[327150104,1715855150003,-500.98971911,0.0001699,2]
[327150105,1715855150023,-500.0,0.0001699,2]
[327150106,1715855150045,-500.0,0.0001699,2]
[327150107,1715855150066,-964.62,0.0001699,2]
[327150108,1715855150086,-500.0,0.0001699,2]
[327150109,1715855150105,-2897.28,0.0001699,2]
[327150110,1715855150124,-3657.32,0.0001699,2]
[327150111,1715855150144,-828.62,0.0001699,2]
[327150112,1715855150164,-426.88169446,0.0001699,2]
[327150114,1715855246159,-761.82071896,0.0001689,2]
[327150115,1715855246180,-2316.45,0.00016989,2]